[Event "Late-Titled-Tuesday-Blitz-January-16-2024"]
[Site "Chess.com"]
[Date "2024.01.16"]
[Round "9"]
[White "Filipets"]
[Black "GianmarcoVaR"]
[Result "1-0"]
[WhiteElo "2585"]
[BlackElo "2726"]
[TimeControl "180+1"]
[EndTime "15:46:47 PST"]
[Termination "Filipets won by resignation"]

1. c4 {[%clk 0:03:00.9]} 1... g6 {[%clk 0:02:55.1]} 2. Nf3 {[%clk 0:03:00.8]}
2... Bg7 {[%clk 0:02:56]} 3. g3 {[%clk 0:03:01.5]} 3... c5 {[%clk 0:02:53.2]} 4.
Bg2 {[%clk 0:03:02]} 4... Nc6 {[%clk 0:02:53.5]} 5. O-O {[%clk 0:03:02.7]} 5...
d6 {[%clk 0:02:53.1]} 6. Nc3 {[%clk 0:03:03.2]} 6... e5 {[%clk 0:02:51.4]} 7. a3
{[%clk 0:03:02.9]} 7... Nge7 {[%clk 0:02:50.4]} 8. Rb1 {[%clk 0:03:03.4]} 8...
a5 {[%clk 0:02:50.4]} 9. Ne1 {[%clk 0:03:03.1]} 9... O-O {[%clk 0:02:42.4]} 10.
Nc2 {[%clk 0:03:02.7]} 10... Be6 {[%clk 0:02:37.4]} 11. d3 {[%clk 0:03:02.5]}
11... Qd7 {[%clk 0:02:38.3]} 12. b4 {[%clk 0:03:02.4]} 12... axb4 {[%clk
0:02:26.5]} 13. axb4 {[%clk 0:03:03.3]} 13... f5 {[%clk 0:02:23.6]} 14. bxc5
{[%clk 0:02:34]} 14... dxc5 {[%clk 0:02:23.1]} 15. Ne3 {[%clk 0:02:30.2]} 15...
Nb4 {[%clk 0:02:21.7]} 16. Qb3 {[%clk 0:02:14.6]} 16... f4 {[%clk 0:01:56]} 17.
Ned5 {[%clk 0:02:12.3]} 17... Nexd5 {[%clk 0:01:35.4]} 18. Nxd5 {[%clk
0:02:04.3]} 18... Bxd5 {[%clk 0:01:27.4]} 19. cxd5 {[%clk 0:01:57.5]} 19... Kh8
{[%clk 0:01:04.6]} 20. Bd2 {[%clk 0:01:45.8]} 20... Ra4 {[%clk 0:00:40.2]} 21.
d6 {[%clk 0:01:32.7]} 21... b5 {[%clk 0:00:37.3]} 22. Bxb4 {[%clk 0:01:27]}
22... Rxb4 {[%clk 0:00:37.2]} 23. Qd5 {[%clk 0:01:27.6]} 23... Rd4 {[%clk
0:00:20.1]} 24. Qxc5 {[%clk 0:01:23.8]} 24... Qxd6 {[%clk 0:00:20]} 25. Rxb5
{[%clk 0:01:10.7]} 25... Qxc5 {[%clk 0:00:17.1]} 26. Rxc5 {[%clk 0:01:11.6]}
26... Rd7 {[%clk 0:00:15.8]} 27. Be4 {[%clk 0:01:09]} 27... Bf6 {[%clk
0:00:13.6]} 28. Kg2 {[%clk 0:01:08]} 28... Kg7 {[%clk 0:00:13.1]} 29. Rb1 {[%clk
0:01:05.8]} 29... Rfd8 {[%clk 0:00:11.1]} 30. Rb6 {[%clk 0:01:04.7]} 30... Rd6
{[%clk 0:00:11]} 31. Rc7+ {[%clk 0:01:02.7]} 31... R6d7 {[%clk 0:00:10.2]} 32.
Rcc6 {[%clk 0:01:02]} 32... Rf8 {[%clk 0:00:08.2]} 33. Re6 {[%clk 0:01:01.3]}
33... Re7 {[%clk 0:00:07.5]} 34. Rec6 {[%clk 0:00:58.9]} 34... Rd7 {[%clk
0:00:06.1]} 35. Ra6 {[%clk 0:00:58.6]} 35... Re7 {[%clk 0:00:06.1]} 36. Bd5
{[%clk 0:00:57.4]} 36... Rd7 {[%clk 0:00:05.6]} 37. Bc4 {[%clk 0:00:57.3]} 37...
Re7 {[%clk 0:00:06]} 38. Rd6 {[%clk 0:00:55.8]} 38... Bg5 {[%clk 0:00:03]} 39.
h4 {[%clk 0:00:54]} 39... Bf6 {[%clk 0:00:03.7]} 40. Bd5 {[%clk 0:00:53]} 40...
Rc7 {[%clk 0:00:03.9]} 41. Be4 {[%clk 0:00:52.9]} 41... Re7 {[%clk 0:00:04.5]}
42. Kh3 {[%clk 0:00:49.8]} 42... Rc7 {[%clk 0:00:04.7]} 43. Kg4 {[%clk
0:00:49.6]} 43... Re7 {[%clk 0:00:04.6]} 44. h5 {[%clk 0:00:48.2]} 44... gxh5+
{[%clk 0:00:05.1]} 45. Kxh5 {[%clk 0:00:49.1]} 45... fxg3 {[%clk 0:00:05.7]} 46.
fxg3 {[%clk 0:00:49.2]} 46... Rc7 {[%clk 0:00:06]} 47. g4 {[%clk 0:00:44.8]}
47... h6 {[%clk 0:00:06.1]} 48. Bd5 {[%clk 0:00:41.4]} 48... Re7 {[%clk
0:00:03.5]} 49. Rdc6 {[%clk 0:00:41.2]} 49... Rd7 {[%clk 0:00:03.6]} 50. Be6
{[%clk 0:00:41.3]} 50... Rb7 {[%clk 0:00:03.6]} 51. Bf5 {[%clk 0:00:39.5]} 51...
Rff7 {[%clk 0:00:03.1]} 52. Rc8 {[%clk 0:00:37.3]} 52... Rb1 {[%clk 0:00:02.6]}
53. g5 {[%clk 0:00:33.7]} 53... Rh1+ {[%clk 0:00:03.2]} 54. Kg4 {[%clk
0:00:34.4]} 54... Rg1+ {[%clk 0:00:04.1]} 55. Kf3 {[%clk 0:00:35]} 55... Bxg5
{[%clk 0:00:04.7]} 56. e4 {[%clk 0:00:33.4]} 56... Rf1+ {[%clk 0:00:04.2]} 57.
Ke2 {[%clk 0:00:33.6]} 57... Rh1 {[%clk 0:00:04.1]} 58. Rg6+ {[%clk 0:00:34]}
58... Kh7 {[%clk 0:00:04.1]} 59. Rxg5+ {[%clk 0:00:34]} 59... Rxf5 {[%clk
0:00:04.3]} 60. Rxf5 {[%clk 0:00:34.9]} 1-0

[Event "Late-Titled-Tuesday-Blitz-January-16-2024"]
[Site "Chess.com"]
[Date "2024.01.16"]
[Round "9"]
[White "masnyszachistaaa"]
[Black "karinachess1"]
[Result "1-0"]
[WhiteElo "2529"]
[BlackElo "2619"]
[TimeControl "180+1"]
[EndTime "15:46:49 PST"]
[Termination "masnyszachistaaa won on time"]

1. d4 {[%clk 0:03:00.9]} 1... Nf6 {[%clk 0:02:59.8]} 2. Nf3 {[%clk 0:03:00.1]}
2... e6 {[%clk 0:02:59.8]} 3. g3 {[%clk 0:02:58.8]} 3... d5 {[%clk 0:02:59.9]}
4. Bg2 {[%clk 0:02:58.7]} 4... b5 {[%clk 0:03:00]} 5. O-O {[%clk 0:02:57.4]}
5... Be7 {[%clk 0:02:59.3]} 6. a4 {[%clk 0:02:56.5]} 6... b4 {[%clk 0:02:59.6]}
7. c4 {[%clk 0:02:56.2]} 7... O-O {[%clk 0:02:52.1]} 8. Qc2 {[%clk 0:02:51]}
8... Bb7 {[%clk 0:02:42]} 9. Nbd2 {[%clk 0:02:47]} 9... c5 {[%clk 0:02:25.1]}
10. dxc5 {[%clk 0:02:45.7]} 10... Na6 {[%clk 0:02:06.8]} 11. c6 {[%clk
0:02:37.3]} 11... Bxc6 {[%clk 0:02:04.7]} 12. Ne5 {[%clk 0:02:37.8]} 12... Bb7
{[%clk 0:02:02.5]} 13. Rd1 {[%clk 0:02:35.8]} 13... Qc7 {[%clk 0:01:59]} 14.
Ndf3 {[%clk 0:02:27]} 14... Rac8 {[%clk 0:01:55.4]} 15. Bf4 {[%clk 0:02:26.5]}
15... Qa5 {[%clk 0:01:54.4]} 16. Nd2 {[%clk 0:02:20.4]} 16... Nc5 {[%clk
0:01:49]} 17. Nb3 {[%clk 0:01:56.3]} 17... Nxb3 {[%clk 0:01:48.1]} 18. Qxb3
{[%clk 0:01:57.2]} 18... Qa6 {[%clk 0:01:29]} 19. Rac1 {[%clk 0:01:41.4]} 19...
dxc4 {[%clk 0:01:28.6]} 20. Bxb7 {[%clk 0:01:40.2]} 20... Qxb7 {[%clk
0:01:27.5]} 21. Rxc4 {[%clk 0:01:37.3]} 21... Nd5 {[%clk 0:01:23.6]} 22. Bd2
{[%clk 0:01:33.2]} 22... a5 {[%clk 0:01:01]} 23. Rdc1 {[%clk 0:01:22.7]} 23...
Nb6 {[%clk 0:01:01.2]} 24. Rxc8 {[%clk 0:00:44.9]} 24... Rxc8 {[%clk 0:01:02.1]}
25. Rxc8+ {[%clk 0:00:28]} 25... Qxc8 {[%clk 0:01:03]} 26. Nf3 {[%clk
0:00:18.2]} 26... Bf6 {[%clk 0:01:00.6]} 27. Be3 {[%clk 0:00:17.1]} 27... Nd5
{[%clk 0:00:50.1]} 28. Bd4 {[%clk 0:00:16.3]} 28... Bxd4 {[%clk 0:00:32.8]} 29.
Nxd4 {[%clk 0:00:17.2]} 29... Qc5 {[%clk 0:00:32.1]} 30. Qc2 {[%clk 0:00:15.5]}
30... Qxc2 {[%clk 0:00:25.5]} 31. Nxc2 {[%clk 0:00:16.4]} 31... Kf8 {[%clk
0:00:25.1]} 32. e4 {[%clk 0:00:15.3]} 32... Nb6 {[%clk 0:00:24.1]} 33. b3 {[%clk
0:00:15.2]} 33... Ke7 {[%clk 0:00:21.4]} 34. Kf1 {[%clk 0:00:15.5]} 34... Kd6
{[%clk 0:00:20.5]} 35. Ke2 {[%clk 0:00:15.7]} 35... Kc5 {[%clk 0:00:21.1]} 36.
Kd3 {[%clk 0:00:15.5]} 36... Nd7 {[%clk 0:00:20.7]} 37. f4 {[%clk 0:00:15.5]}
37... e5 {[%clk 0:00:17.3]} 38. Ne3 {[%clk 0:00:13.1]} 38... exf4 {[%clk
0:00:16]} 39. gxf4 {[%clk 0:00:14]} 39... g5 {[%clk 0:00:06.7]} 40. Nc4 {[%clk
0:00:03.8]} 40... gxf4 {[%clk 0:00:06.3]} 41. Nxa5 {[%clk 0:00:04.2]} 41... Ne5+
{[%clk 0:00:06.4]} 42. Ke2 {[%clk 0:00:04.2]} 42... Kd4 {[%clk 0:00:06]} 43. Nb7
{[%clk 0:00:04.3]} 43... Kc3 {[%clk 0:00:04.6]} 44. Nc5 {[%clk 0:00:04.5]} 44...
Kd4 {[%clk 0:00:03.5]} 45. Nb7 {[%clk 0:00:04.6]} 45... Kxe4 {[%clk 0:00:02.4]}
46. a5 {[%clk 0:00:03.7]} 46... f3+ {[%clk 0:00:03]} 47. Kf1 {[%clk 0:00:03.1]}
1-0

[Event "Late-Titled-Tuesday-Blitz-January-16-2024"]
[Site "Chess.com"]
[Date "2024.01.16"]
[Round "9"]
[White "Rdeux42"]
[Black "AEMEffi"]
[Result "0-1"]
[WhiteElo "2452"]
[BlackElo "2366"]
[TimeControl "180+1"]
[EndTime "15:46:49 PST"]
[Termination "AEMEffi won on time"]

1. e4 {[%clk 0:02:49.4]} 1... e5 {[%clk 0:02:59.5]} 2. Nf3 {[%clk 0:02:48.3]}
2... Nc6 {[%clk 0:03:00]} 3. Nc3 {[%clk 0:02:47.1]} 3... Nf6 {[%clk 0:02:59.7]}
4. d4 {[%clk 0:02:46.6]} 4... exd4 {[%clk 0:03:00.6]} 5. Nxd4 {[%clk 0:02:47.2]}
5... Bb4 {[%clk 0:03:00]} 6. Nxc6 {[%clk 0:02:46.5]} 6... dxc6 {[%clk
0:02:59.4]} 7. Qxd8+ {[%clk 0:02:43.5]} 7... Kxd8 {[%clk 0:03:00.3]} 8. Bg5
{[%clk 0:02:42.2]} 8... Bxc3+ {[%clk 0:02:56.6]} 9. bxc3 {[%clk 0:02:41.5]} 9...
h6 {[%clk 0:02:57.1]} 10. O-O-O+ {[%clk 0:01:53.6]} 10... Ke7 {[%clk 0:02:25.3]}
11. Bf4 {[%clk 0:01:53.2]} 11... Be6 {[%clk 0:02:19.7]} 12. f3 {[%clk
0:01:42.2]} 12... Rhd8 {[%clk 0:02:09]} 13. Be2 {[%clk 0:01:28.8]} 13... Bxa2
{[%clk 0:02:02.2]} 14. c4 {[%clk 0:01:20.6]} 14... b5 {[%clk 0:01:47.7]} 15. Kb2
{[%clk 0:01:16.5]} 15... Bxc4 {[%clk 0:01:46.2]} 16. Bxc4 {[%clk 0:01:15.5]}
16... bxc4 {[%clk 0:01:47.1]} 17. Bxc7 {[%clk 0:00:56.8]} 17... Rxd1 {[%clk
0:01:38.6]} 18. Rxd1 {[%clk 0:00:55]} 18... Ne8 {[%clk 0:01:36.2]} 19. Be5
{[%clk 0:00:40.6]} 19... f6 {[%clk 0:01:35.7]} 20. Bg3 {[%clk 0:00:38.1]} 20...
g5 {[%clk 0:01:13.9]} 21. Kc3 {[%clk 0:00:35.5]} 21... h5 {[%clk 0:01:11.9]} 22.
h3 {[%clk 0:00:25.5]} 22... h4 {[%clk 0:01:08.5]} 23. Bh2 {[%clk 0:00:25.2]}
23... Rd8 {[%clk 0:00:55]} 24. Ra1 {[%clk 0:00:18]} 24... Rd7 {[%clk 0:00:51.1]}
25. Bg1 {[%clk 0:00:17.5]} 25... Nd6 {[%clk 0:00:50.3]} 26. Bc5 {[%clk
0:00:16.4]} 26... Ke6 {[%clk 0:00:50.3]} 27. Ra6 {[%clk 0:00:04.3]} 27... Rc7
{[%clk 0:00:43.7]} 28. Bxd6 {[%clk 0:00:03.8]} 28... Kxd6 {[%clk 0:00:43.6]} 29.
Kxc4 {[%clk 0:00:04.7]} 29... Rb7 {[%clk 0:00:43]} 30. Kc3 {[%clk 0:00:03.6]}
30... Kc5 {[%clk 0:00:41.1]} 31. Ra5+ {[%clk 0:00:03.8]} 31... Kd6 {[%clk
0:00:40.1]} 32. Rf5 {[%clk 0:00:04.7]} 32... Ke6 {[%clk 0:00:39.6]} 33. Rc5
{[%clk 0:00:04.8]} 33... Kd6 {[%clk 0:00:39.1]} 34. Ra5 {[%clk 0:00:04.9]} 34...
Ke6 {[%clk 0:00:32.7]} 35. Ra4 {[%clk 0:00:04.7]} 35... Kd6 {[%clk 0:00:32]} 36.
Rd4+ {[%clk 0:00:04.9]} 36... Ke5 {[%clk 0:00:30.4]} 37. Rd8 {[%clk 0:00:05.2]}
37... Kf4 {[%clk 0:00:28.5]} 38. Rf8 {[%clk 0:00:04]} 38... Kg3 {[%clk 0:00:28]}
39. Rxf6 {[%clk 0:00:03.5]} 39... Kxg2 {[%clk 0:00:28.2]} 40. Rf5 {[%clk
0:00:02.8]} 40... Rg7 {[%clk 0:00:27]} 41. e5 {[%clk 0:00:02.9]} 41... Kxh3
{[%clk 0:00:26.8]} 42. e6 {[%clk 0:00:03.5]} 42... Kg3 {[%clk 0:00:19.1]} 43.
Kd4 {[%clk 0:00:03]} 43... h3 {[%clk 0:00:18]} 44. Rf7 {[%clk 0:00:02.2]} 44...
Rg6 {[%clk 0:00:15.5]} 45. e7 {[%clk 0:00:02]} 45... Re6 {[%clk 0:00:15]} 46.
Rg7 {[%clk 0:00:01.8]} 46... h2 {[%clk 0:00:13.2]} 47. Rxg5+ {[%clk 0:00:01.7]}
47... Kxf3 {[%clk 0:00:08.9]} 0-1

[Event "Late-Titled-Tuesday-Blitz-January-16-2024"]
[Site "Chess.com"]
[Date "2024.01.16"]
[Round "9"]
[White "IlanSchnaider"]
[Black "vugarrasulov"]
[Result "0-1"]
[WhiteElo "2801"]
[BlackElo "2973"]
[TimeControl "180+1"]
[EndTime "15:46:51 PST"]
[Termination "vugarrasulov won by checkmate"]

1. e4 {[%clk 0:03:00.9]} 1... e5 {[%clk 0:02:59.9]} 2. Nf3 {[%clk 0:03:00.8]}
2... Nc6 {[%clk 0:03:00.4]} 3. Bc4 {[%clk 0:03:01.4]} 3... Nf6 {[%clk
0:03:00.1]} 4. d3 {[%clk 0:03:01.5]} 4... Be7 {[%clk 0:02:59.6]} 5. O-O {[%clk
0:03:01.2]} 5... O-O {[%clk 0:03:00.3]} 6. a4 {[%clk 0:02:59.8]} 6... d6 {[%clk
0:02:59.7]} 7. Nc3 {[%clk 0:02:59.9]} 7... Be6 {[%clk 0:02:57.5]} 8. Nd5 {[%clk
0:02:54.1]} 8... Bxd5 {[%clk 0:02:53.4]} 9. exd5 {[%clk 0:02:53.9]} 9... Nb4
{[%clk 0:02:51.8]} 10. d4 {[%clk 0:02:54.3]} 10... e4 {[%clk 0:02:48.2]} 11. Nd2
{[%clk 0:02:54.2]} 11... Nbxd5 {[%clk 0:02:38]} 12. Nxe4 {[%clk 0:02:50.6]}
12... Nb6 {[%clk 0:02:37.7]} 13. Bd3 {[%clk 0:02:48.1]} 13... Nxe4 {[%clk
0:02:34.5]} 14. Bxe4 {[%clk 0:02:48.4]} 14... d5 {[%clk 0:02:35.3]} 15. Bd3
{[%clk 0:02:47.8]} 15... c6 {[%clk 0:02:35.1]} 16. a5 {[%clk 0:02:45.4]} 16...
Nc4 {[%clk 0:02:26.3]} 17. Bxc4 {[%clk 0:02:04.9]} 17... dxc4 {[%clk 0:02:27.2]}
18. Qe2 {[%clk 0:02:04.3]} 18... Bf6 {[%clk 0:02:21.7]} 19. Qxc4 {[%clk
0:02:04]} 19... Qxd4 {[%clk 0:02:21.6]} 20. Qxd4 {[%clk 0:02:00.5]} 20... Bxd4
{[%clk 0:02:22.5]} 21. c3 {[%clk 0:02:01.1]} 21... Bf6 {[%clk 0:02:21.6]} 22.
Be3 {[%clk 0:02:01.6]} 22... Rfd8 {[%clk 0:02:00]} 23. Rfd1 {[%clk 0:01:58.6]}
23... Rxd1+ {[%clk 0:01:55.3]} 24. Rxd1 {[%clk 0:01:58.3]} 24... Rd8 {[%clk
0:01:55.4]} 25. Rxd8+ {[%clk 0:01:49.8]} 25... Bxd8 {[%clk 0:01:56.3]} 26. Bxa7
{[%clk 0:01:49.9]} 26... Bxa5 {[%clk 0:01:55.5]} 27. Be3 {[%clk 0:01:47.9]}
27... f5 {[%clk 0:01:54]} 28. g3 {[%clk 0:01:47.2]} 28... Kf7 {[%clk 0:01:54]}
29. Kf1 {[%clk 0:01:47.4]} 29... Ke6 {[%clk 0:01:52.8]} 30. Ke2 {[%clk 0:01:48]}
30... b5 {[%clk 0:01:50.8]} 31. Kd3 {[%clk 0:01:46.8]} 31... Bc7 {[%clk
0:01:50.8]} 32. f4 {[%clk 0:01:43.9]} 32... g6 {[%clk 0:01:44.7]} 33. Bd4 {[%clk
0:01:42]} 33... Bd6 {[%clk 0:01:43.9]} 34. Be3 {[%clk 0:01:36.1]} 34... Be7
{[%clk 0:01:39.9]} 35. c4 {[%clk 0:01:31.7]} 35... h6 {[%clk 0:01:39.8]} 36. b3
{[%clk 0:01:30.8]} 36... g5 {[%clk 0:01:39]} 37. Bd2 {[%clk 0:01:30.1]} 37... g4
{[%clk 0:01:38.8]} 38. Be3 {[%clk 0:01:30.3]} 38... h5 {[%clk 0:01:38.8]} 39.
Bf2 {[%clk 0:01:23.9]} 39... Bf6 {[%clk 0:01:38.9]} 40. Bd4 {[%clk 0:01:20]}
40... Bd8 {[%clk 0:01:38.6]} 41. Bc3 {[%clk 0:01:13]} 41... h4 {[%clk
0:01:36.8]} 42. Bd4 {[%clk 0:01:09.4]} 42... h3 {[%clk 0:01:37]} 43. Be3 {[%clk
0:00:57.6]} 43... Bc7 {[%clk 0:01:31.8]} 44. Bd2 {[%clk 0:00:55.3]} 44... Bd6
{[%clk 0:01:21.5]} 45. Be3 {[%clk 0:00:54.1]} 45... Bb4 {[%clk 0:01:21]} 46. Bd2
{[%clk 0:00:51.5]} 46... bxc4+ {[%clk 0:01:12.5]} 47. bxc4 {[%clk 0:00:49.3]}
47... Be7 {[%clk 0:01:13.1]} 48. Be3 {[%clk 0:00:41.7]} 48... Bd6 {[%clk
0:01:13.6]} 49. Bd2 {[%clk 0:00:41.8]} 49... Kd7 {[%clk 0:01:13.9]} 50. Be3
{[%clk 0:00:41]} 50... Kc8 {[%clk 0:01:14.2]} 51. Bd4 {[%clk 0:00:36.1]} 51...
Kb7 {[%clk 0:01:13]} 52. Be3 {[%clk 0:00:19.7]} 52... Ka6 {[%clk 0:01:12]} 53.
Bd2 {[%clk 0:00:20.2]} 53... Bc5 {[%clk 0:01:11.4]} 54. Be3 {[%clk 0:00:19.3]}
54... Bxe3 {[%clk 0:00:56.5]} 55. Kxe3 {[%clk 0:00:19.8]} 55... c5 {[%clk
0:00:57.4]} 56. Kd2 {[%clk 0:00:04.6]} 56... Ka5 {[%clk 0:00:58.3]} 57. Kc3
{[%clk 0:00:03]} 57... Ka4 {[%clk 0:00:58.7]} 58. Kc2 {[%clk 0:00:01.6]} 58...
Kb4 {[%clk 0:00:58.9]} 59. Kd3 {[%clk 0:00:02.5]} 59... Kb3 {[%clk 0:00:59.6]}
60. Kd2 {[%clk 0:00:03]} 60... Kxc4 {[%clk 0:01:00.5]} 61. Ke3 {[%clk
0:00:03.9]} 61... Kc3 {[%clk 0:01:00.7]} 62. Ke2 {[%clk 0:00:04.3]} 62... c4
{[%clk 0:01:00.4]} 63. Ke3 {[%clk 0:00:04.7]} 63... Kb2 {[%clk 0:01:00.1]} 64.
Kd4 {[%clk 0:00:03.1]} 64... c3 {[%clk 0:01:00.7]} 65. Ke5 {[%clk 0:00:04]}
65... c2 {[%clk 0:01:01.5]} 66. Kxf5 {[%clk 0:00:04.9]} 66... c1=Q {[%clk
0:01:02.1]} 67. Kxg4 {[%clk 0:00:05.8]} 67... Qf1 {[%clk 0:01:01.2]} 68. f5
{[%clk 0:00:06.1]} 68... Qg2 {[%clk 0:01:00.5]} 69. f6 {[%clk 0:00:06.2]} 69...
Qxh2 {[%clk 0:01:01.2]} 70. f7 {[%clk 0:00:05.8]} 70... Qf2 {[%clk 0:01:01.7]}
71. f8=Q {[%clk 0:00:05.6]} 71... Qxf8 {[%clk 0:01:01.8]} 72. Kxh3 {[%clk
0:00:06.4]} 72... Kc3 {[%clk 0:01:01.9]} 73. Kg4 {[%clk 0:00:06.9]} 73... Kd4
{[%clk 0:01:02.8]} 74. Kg5 {[%clk 0:00:07.6]} 74... Ke5 {[%clk 0:01:03.7]} 75.
g4 {[%clk 0:00:08.5]} 75... Qg7+ {[%clk 0:01:03.9]} 76. Kh5 {[%clk 0:00:09.1]}
76... Kf4 {[%clk 0:01:04.8]} 77. g5 {[%clk 0:00:09.4]} 77... Qxg5# {[%clk
0:01:05]} 0-1

[Event "Late-Titled-Tuesday-Blitz-January-16-2024"]
[Site "Chess.com"]
[Date "2024.01.16"]
[Round "9"]
[White "Cambek64"]
[Black "jinbojinbo"]
[Result "0-1"]
[WhiteElo "2474"]
[BlackElo "2656"]
[TimeControl "180+1"]
[EndTime "15:46:51 PST"]
[Termination "jinbojinbo won on time"]

1. e4 {[%clk 0:01:45.3]} 1... c5 {[%clk 0:02:48.5]} 2. Nc3 {[%clk 0:01:43.7]}
2... Nc6 {[%clk 0:02:48.4]} 3. d3 {[%clk 0:01:43.5]} 3... g6 {[%clk 0:02:48.5]}
4. Be3 {[%clk 0:01:42.9]} 4... d6 {[%clk 0:02:48.7]} 5. d4 {[%clk 0:01:43.5]}
5... cxd4 {[%clk 0:02:48]} 6. Bxd4 {[%clk 0:01:44.4]} 6... Nxd4 {[%clk
0:02:47.1]} 7. Qxd4 {[%clk 0:01:44.8]} 7... Nf6 {[%clk 0:02:47.4]} 8. e5 {[%clk
0:01:44.8]} 8... dxe5 {[%clk 0:02:44.7]} 9. Bb5+ {[%clk 0:01:44.9]} 9... Bd7
{[%clk 0:02:43.4]} 10. Qxe5 {[%clk 0:01:45]} 10... Bg7 {[%clk 0:01:49.5]} 11.
O-O-O {[%clk 0:01:43]} 11... O-O {[%clk 0:01:49.9]} 12. Bxd7 {[%clk 0:01:43.1]}
12... Nxd7 {[%clk 0:01:50.8]} 13. Qb5 {[%clk 0:01:43.2]} 13... Qc7 {[%clk
0:01:36.5]} 14. Qxd7 {[%clk 0:01:34.7]} 14... Qb6 {[%clk 0:01:34.2]} 15. Nge2
{[%clk 0:01:26.8]} 15... Qxf2 {[%clk 0:01:33.4]} 16. Qd5 {[%clk 0:01:15.1]}
16... b5 {[%clk 0:01:31.5]} 17. Qf3 {[%clk 0:01:14.7]} 17... Qc5 {[%clk
0:01:29.8]} 18. Rd5 {[%clk 0:01:09.3]} 18... Qc7 {[%clk 0:01:18.3]} 19. Rxb5
{[%clk 0:01:09.4]} 19... Rac8 {[%clk 0:01:14.8]} 20. Rd1 {[%clk 0:01:03.7]}
20... a6 {[%clk 0:01:13]} 21. Rb7 {[%clk 0:00:59]} 21... Qe5 {[%clk 0:01:13]}
22. h3 {[%clk 0:00:51.4]} 22... Rc5 {[%clk 0:01:04.2]} 23. Kb1 {[%clk
0:00:47.4]} 23... h5 {[%clk 0:01:01.3]} 24. a3 {[%clk 0:00:47.1]} 24... Rcc8
{[%clk 0:00:56.8]} 25. Rdd7 {[%clk 0:00:43.9]} 25... Rfe8 {[%clk 0:00:55.9]} 26.
Qd5 {[%clk 0:00:37.1]} 26... Qf6 {[%clk 0:00:43.6]} 27. Qf3 {[%clk 0:00:32.3]}
27... Qg5 {[%clk 0:00:39.9]} 28. Ne4 {[%clk 0:00:26.6]} 28... Qe5 {[%clk
0:00:40]} 29. N2c3 {[%clk 0:00:20.6]} 29... Rc4 {[%clk 0:00:33.1]} 30. Qd3
{[%clk 0:00:17.6]} 30... Rcc8 {[%clk 0:00:30.9]} 31. Qd5 {[%clk 0:00:16.3]}
31... Qf4 {[%clk 0:00:26.4]} 32. g3 {[%clk 0:00:16.3]} 32... Qf1+ {[%clk
0:00:26.2]} 33. Ka2 {[%clk 0:00:16.6]} 33... Qf3 {[%clk 0:00:14.7]} 34. Rxe7
{[%clk 0:00:15.1]} 34... Rxe7 {[%clk 0:00:14.3]} 35. Rxe7 {[%clk 0:00:14.6]}
35... Bxc3 {[%clk 0:00:14.6]} 36. Nxc3 {[%clk 0:00:13]} 36... Qf2 {[%clk
0:00:12.3]} 37. Qe4 {[%clk 0:00:09.4]} 37... Rf8 {[%clk 0:00:12]} 38. g4 {[%clk
0:00:09]} 38... h4 {[%clk 0:00:11.8]} 39. g5 {[%clk 0:00:08]} 39... Qg3 {[%clk
0:00:11.3]} 40. Nd5 {[%clk 0:00:07.6]} 40... Qxg5 {[%clk 0:00:11.5]} 41. Re5
{[%clk 0:00:05.5]} 41... Qd8 {[%clk 0:00:09.9]} 42. Re7 {[%clk 0:00:04.2]} 42...
Qd6 {[%clk 0:00:10.2]} 43. Qd4 {[%clk 0:00:01.8]} 43... Rd8 {[%clk 0:00:09.1]}
0-1

[Event "Late-Titled-Tuesday-Blitz-January-16-2024"]
[Site "Chess.com"]
[Date "2024.01.16"]
[Round "9"]
[White "Bastiandash"]
[Black "GMCorinnaKopff"]
[Result "1-0"]
[WhiteElo "2503"]
[BlackElo "2327"]
[TimeControl "180+1"]
[EndTime "15:46:52 PST"]
[Termination "Bastiandash won by checkmate"]

1. d4 {[%clk 0:02:51]} 1... Nf6 {[%clk 0:02:55.6]} 2. c4 {[%clk 0:02:50.3]} 2...
g6 {[%clk 0:02:55.5]} 3. Nc3 {[%clk 0:02:50.6]} 3... Bg7 {[%clk 0:02:55.8]} 4.
e4 {[%clk 0:02:51.2]} 4... d6 {[%clk 0:02:56.4]} 5. f3 {[%clk 0:02:51.7]} 5...
O-O {[%clk 0:02:57]} 6. Nge2 {[%clk 0:02:52.6]} 6... c5 {[%clk 0:02:55.9]} 7.
Be3 {[%clk 0:02:52.9]} 7... Nc6 {[%clk 0:02:55.5]} 8. d5 {[%clk 0:02:37.4]} 8...
Ne5 {[%clk 0:02:55.1]} 9. Ng3 {[%clk 0:02:38.3]} 9... h5 {[%clk 0:02:54.6]} 10.
Be2 {[%clk 0:02:37]} 10... e6 {[%clk 0:02:53.6]} 11. Nf1 {[%clk 0:02:37.6]}
11... exd5 {[%clk 0:02:50.9]} 12. cxd5 {[%clk 0:02:38.5]} 12... a6 {[%clk
0:02:47.6]} 13. a4 {[%clk 0:02:38.2]} 13... Bd7 {[%clk 0:02:46.2]} 14. Nd2
{[%clk 0:02:33]} 14... b5 {[%clk 0:02:44.1]} 15. axb5 {[%clk 0:02:29.8]} 15...
axb5 {[%clk 0:02:45]} 16. Rxa8 {[%clk 0:02:30.4]} 16... Qxa8 {[%clk 0:02:44.6]}
17. Nxb5 {[%clk 0:02:31.3]} 17... Qa6 {[%clk 0:02:25.7]} 18. Nc3 {[%clk
0:02:20.9]} 18... Nd3+ {[%clk 0:02:25]} 19. Bxd3 {[%clk 0:02:18]} 19... Qxd3
{[%clk 0:02:25.9]} 20. Qe2 {[%clk 0:02:17]} 20... Qc2 {[%clk 0:02:21.5]} 21. Nc4
{[%clk 0:02:14.8]} 21... Qb3 {[%clk 0:02:12.9]} 22. Nxd6 {[%clk 0:02:12.9]}
22... Ra8 {[%clk 0:02:03.5]} 23. O-O {[%clk 0:02:10.4]} 23... h4 {[%clk
0:01:54.9]} 24. Rd1 {[%clk 0:01:58.8]} 24... Nh5 {[%clk 0:01:53.7]} 25. Bxc5
{[%clk 0:01:54]} 25... Nf4 {[%clk 0:01:49.5]} 26. Qd2 {[%clk 0:01:50]} 26... Be5
{[%clk 0:01:43.9]} 27. g3 {[%clk 0:00:56.4]} 27... Nh3+ {[%clk 0:01:39.5]} 28.
Kg2 {[%clk 0:00:54.6]} 28... Rb8 {[%clk 0:01:39.4]} 29. f4 {[%clk 0:00:44.6]}
29... Bg7 {[%clk 0:01:25.8]} 30. f5 {[%clk 0:00:39.7]} 30... Ng5 {[%clk
0:01:15.5]} 31. Qxg5 {[%clk 0:00:20.2]} 31... Qxb2+ {[%clk 0:01:15.7]} 32. Rd2
{[%clk 0:00:13.6]} 32... Qxc3 {[%clk 0:01:15.5]} 33. Qe3 {[%clk 0:00:14.2]}
33... h3+ {[%clk 0:01:07.9]} 34. Kxh3 {[%clk 0:00:13.2]} 34... Qe5 {[%clk
0:00:59]} 35. Nc4 {[%clk 0:00:09.3]} 35... Qc7 {[%clk 0:00:55.3]} 36. Bd6 {[%clk
0:00:09.6]} 36... Qxc4 {[%clk 0:00:54.1]} 37. Bxb8 {[%clk 0:00:10.3]} 37... Qc8
{[%clk 0:00:48.5]} 38. Bf4 {[%clk 0:00:09.2]} 38... gxf5 {[%clk 0:00:46.8]} 39.
Kg2 {[%clk 0:00:09.7]} 39... fxe4 {[%clk 0:00:46.7]} 40. Qxe4 {[%clk 0:00:10.3]}
40... Bf5 {[%clk 0:00:46.9]} 41. Qf3 {[%clk 0:00:09.6]} 41... Bh3+ {[%clk
0:00:45.8]} 42. Kf2 {[%clk 0:00:09.5]} 42... Bg4 {[%clk 0:00:46.2]} 43. Qe3
{[%clk 0:00:09.9]} 43... Qf5 {[%clk 0:00:45.9]} 44. d6 {[%clk 0:00:10.4]} 44...
Qh5 {[%clk 0:00:42.9]} 45. h4 {[%clk 0:00:10.1]} 45... Bd7 {[%clk 0:00:36.7]}
46. Re2 {[%clk 0:00:09.8]} 46... Qg4 {[%clk 0:00:36.1]} 47. Rd2 {[%clk 0:00:10]}
47... Qh3 {[%clk 0:00:35.7]} 48. Qf3 {[%clk 0:00:10.2]} 48... Qf5 {[%clk
0:00:23.9]} 49. Be3 {[%clk 0:00:10.2]} 49... Qa5 {[%clk 0:00:21.6]} 50. Qf4
{[%clk 0:00:09.7]} 50... Kf8 {[%clk 0:00:18.9]} 51. Bd4 {[%clk 0:00:09.8]} 51...
f6 {[%clk 0:00:06.6]} 52. Bxf6 {[%clk 0:00:09.6]} 52... Bxf6 {[%clk 0:00:05.4]}
53. Qxf6+ {[%clk 0:00:10.5]} 53... Ke8 {[%clk 0:00:06.1]} 54. Qe7# {[%clk
0:00:10.6]} 1-0